bitfinex/quotes_BTCUSD_20220304
["timestamp","ask_amount","ask_price","bid_price","bid_amount"]
[1646393623069,0.009587,41788.0,41784.0,0.36074862]
[1646393623371,0.009587,41788.0,41784.0,0.18655872]
[1646393624170,0.009587,41788.0,41784.0,0.25829253]
[1646393624370,0.009587,41788.0,41787.0,0.19103483]
[1646393624570,0.009587,41788.0,41787.0,0.55495105]
[1646393624771,0.0024,41794.0,41788.0,0.019174]
[1646393625369,0.03501832,41795.0,41794.0,0.23381789]
[1646393625670,0.001,41796.0,41791.0,0.21011778]
[1646393626069,0.001,41796.0,41792.0,0.3]
[1646393626312,0.001,41796.0,41791.0,0.21011778]
[1646393626911,0.001,41796.0,41792.0,0.3]
[1646393627111,0.001,41796.0,41792.0,0.54749543]
[1646393628311,0.001,41796.0,41792.0,0.24749543]
[1646393628517,0.001,41796.0,41792.0,0.54749543]
[1646393629514,0.001,41796.0,41794.0,0.16935552]
[1646393629714,0.001,41796.0,41795.0,0.3]
[1646393630565,0.001,41796.0,41795.0,0.29967121]
[1646393632466,0.001,41796.0,41795.0,0.71327621]
[1646393632669,0.0021,41800.0,41798.0,0.4197267]
[1646393632867,0.0021,41800.0,41799.0,0.0481]
[1646393633066,0.0021,41800.0,41799.0,0.55850191]
[1646393633265,0.0021,41800.0,41799.0,0.85850191]
[1646393633465,0.001,41801.0,41799.0,0.77752122]
[1646393633666,0.6309,41813.0,41801.0,0.365505]
[1646393633667,0.55197471,41813.0,41801.0,0.365505]
[1646393633921,0.5352,41813.0,41802.0,0.0481]
[1646393634117,0.4852,41813.0,41803.0,0.665505]
[1646393634316,0.4852,41813.0,41803.0,0.3481]
[1646393634516,0.3587,41814.0,41810.0,0.19008914]
[1646393634719,0.10318782,41816.0,41810.0,0.19008914]
[1646393635118,0.0033,41816.0,41810.0,0.19008914]
[1646393636620,0.012881,41816.0,41810.0,0.19008914]
[1646393639265,0.012881,41816.0,41804.0,0.001]
[1646393639266,0.072716,41816.0,41804.0,0.001]
[1646393639462,0.072716,41816.0,41800.0,0.23705468]
[1646393639463,0.05,41807.0,41800.0,0.23705468]
[1646393639965,0.13708378,41815.0,41800.0,0.23705468]
[1646393640261,0.18870871,41808.0,41806.0,0.19528944]
[1646393640462,0.059848,41808.0,41800.0,0.23705468]
[1646393641414,0.20497684,41807.0,41800.0,0.23705468]
[1646393641818,0.05,41807.0,41800.0,0.23705468]
[1646393642212,0.08959715,41800.0,41799.0,0.19180664]
[1646393642613,0.08959715,41800.0,41799.0,0.49180664]
[1646393642812,0.08959715,41800.0,41799.0,0.19180664]
[1646393643415,0.08959715,41800.0,41799.0,0.49180664]
[1646393644017,0.08959715,41800.0,41799.0,0.56344633]
[1646393644715,0.08959715,41800.0,41799.0,0.49180664]
[1646393649713,0.08959715,41800.0,41799.0,0.69180664]
[1646393650415,0.08959715,41800.0,41799.0,0.49180664]
[1646393651919,0.08959715,41800.0,41799.0,0.19180664]
[1646393654967,0.03551955,41807.0,41800.0,4.91040285]
[1646393657031,0.19765521,41806.0,41800.0,4.91040285]
[1646393657435,0.03551955,41807.0,41800.0,4.91040285]
[1646393658432,0.18471917,41804.0,41800.0,4.91040285]
[1646393658633,0.23281917,41804.0,41800.0,4.90540285]
[1646393658833,0.28281917,41804.0,41800.0,4.90540285]
[1646393659434,0.20660742,41803.0,41800.0,4.90540285]
[1646393660464,0.25470742,41803.0,41800.0,4.90540285]
[1646393660664,0.23974417,41801.0,41800.0,4.90540285]
[1646393661064,0.28974417,41801.0,41800.0,4.90540285]
[1646393662165,0.30470742,41803.0,41800.0,4.90540285]
[1646393662868,0.0981,41803.0,41800.0,4.90540285]
[1646393663066,0.0481,41803.0,41800.0,4.90540285]
[1646393664222,0.8802,41803.0,41800.0,4.90540285]
[1646393664424,0.1481,41803.0,41800.0,4.90540285]
[1646393664623,0.05000518,41802.0,41800.0,4.90540285]
[1646393664822,0.0481,41801.0,41800.0,4.90540285]
[1646393665226,0.0981,41801.0,41800.0,4.90540285]
[1646393665424,0.38144726,41801.0,41800.0,4.89872148]
[1646393665823,0.48144726,41801.0,41800.0,4.89872148]
[1646393666425,0.47644726,41801.0,41800.0,4.89872148]
[1646393666627,0.47644726,41801.0,41800.0,4.89379184]
[1646393666826,0.47644726,41801.0,41800.0,4.85887871]
[1646393667427,1.20854726,41801.0,41800.0,4.85887871]
[1646393667666,0.47644726,41801.0,41800.0,4.85887871]
[1646393667870,0.56253104,41801.0,41800.0,4.85887871]
[1646393668469,1.29463104,41801.0,41800.0,4.85887871]
[1646393668669,1.29463104,41801.0,41800.0,4.85226316]
[1646393669273,1.29463104,41801.0,41788.0,0.019174]
[1646393669274,0.059878,41798.0,41788.0,0.019174]
[1646393669472,0.119766,41793.0,41776.0,0.4934]
[1646393669672,0.0481,41792.0,41778.0,0.06391622]
[1646393669871,0.0481,41792.0,41777.0,0.53401622]
[1646393670072,0.15711844,41787.0,41778.0,0.20566582]
[1646393670273,0.21604633,41783.0,41778.0,0.20566582]
[1646393670576,0.059887,41784.0,41778.0,0.20566582]
[1646393671627,0.059887,41784.0,41778.0,0.78816031]
[1646393671827,0.27105464,41786.0,41778.0,0.50566582]
[1646393672028,0.27105464,41786.0,41779.0,0.07166959]
[1646393672227,0.27105464,41786.0,41778.0,0.20566582]
[1646393674428,0.45711844,41787.0,41778.0,0.20566582]
[1646393674628,0.50521844,41787.0,41778.0,0.20566582]
[1646393675273,0.23067145,41784.0,41778.0,0.20566582]
[1646393676075,0.50521844,41787.0,41778.0,0.20566582]
[1646393676874,0.50221844,41787.0,41778.0,0.20566582]
[1646393677275,0.50221844,41787.0,41778.0,0.40902222]
[1646393677975,0.50221844,41787.0,41778.0,0.20566582]
[1646393678821,0.06188,41789.0,41778.0,0.20566582]
[1646393678822,0.002,41789.0,41778.0,0.20566582]
[1646393679022,0.052,41789.0,41782.0,0.17034979]
[1646393679223,0.002,41789.0,41778.0,0.20566582]
[1646393679522,0.35,41791.0,41784.0,0.06123958]
[1646393679723,0.05,41791.0,41787.0,0.18989531]
[1646393680125,0.075,41792.0,41787.0,0.18989531]
[1646393680327,0.025,41792.0,41787.0,0.18989531]
[1646393680724,0.025,41792.0,41783.0,0.001]
[1646393681427,0.025,41792.0,41780.0,0.1584]
[1646393681627,0.18235068,41788.0,41783.0,0.21808951]
[1646393682024,0.025,41792.0,41779.0,0.24834195]
[1646393682227,0.059878,41790.0,41780.0,0.003]
[1646393683074,0.31291572,41790.0,41783.0,0.23556158]
[1646393683272,0.059878,41790.0,41783.0,0.23556158]
[1646393686078,0.059878,41790.0,41779.0,0.24834195]
[1646393686318,0.059878,41790.0,41782.0,0.06591622]
[1646393686719,0.27592676,41792.0,41786.0,0.16660599]
[1646393687320,0.27592676,41792.0,41786.0,0.44260105]
[1646393688026,0.075,41792.0,41786.0,0.44260105]
[1646393689824,0.075,41792.0,41786.0,0.16660599]
[1646393690095,0.025,41792.0,41786.0,0.16660599]
[1646393691089,0.025,41792.0,41782.0,0.06391622]
[1646393691890,0.2056272,41787.0,41781.0,0.06391622]
[1646393692189,0.059879,41790.0,41781.0,0.06391622]
[1646393692589,0.059879,41790.0,41781.0,0.25231656]
[1646393692790,0.059879,41790.0,41781.0,0.06391622]
[1646393692990,0.20238706,41787.0,41781.0,0.06391622]
[1646393694417,0.20238706,41787.0,41782.0,0.06391622]
[1646393694816,0.20238706,41787.0,41780.0,0.19353519]
[1646393695417,0.19738706,41787.0,41780.0,0.19253519]
[1646393696621,0.40843354,41787.0,41780.0,0.19253519]
[1646393696820,0.19738706,41787.0,41780.0,0.25645141]
[1646393697870,0.48642812,41787.0,41780.0,0.25645141]
[1646393698069,0.48642812,41787.0,41776.0,0.24433512]
[1646393698270,0.48642812,41787.0,41777.0,0.06391622]
[1646393699273,0.19738706,41787.0,41778.0,0.19599365]
[1646393700077,0.3,41789.0,41778.0,0.19599365]
[1646393700278,0.3,41792.0,41785.0,0.22718939]
[1646393700478,0.059871,41795.0,41785.0,0.22718939]
[1646393700678,0.35,41792.0,41785.0,0.22718939]
[1646393700879,0.3,41792.0,41785.0,0.22718939]
[1646393701081,0.4,41792.0,41785.0,0.22718939]
[1646393701340,0.4,41792.0,41785.0,0.39387553]
[1646393701741,0.4,41792.0,41785.0,0.39381553]
[1646393701939,0.1,41792.0,41785.0,0.39381553]
[1646393702139,0.05,41792.0,41788.0,0.07293566]
[1646393702339,0.08599841,41793.0,41785.0,0.39381553]
[1646393702340,0.13599841,41793.0,41785.0,0.39381553]
[1646393702539,0.13599841,41793.0,41789.0,0.17253889]
[1646393702741,0.13599841,41793.0,41785.0,0.39381553]
[1646393703441,0.91211919,41799.0,41785.0,0.39381553]
[1646393703442,0.86811919,41799.0,41793.0,0.4]
[1646393703746,0.08486843,41805.0,41793.0,0.4]
[1646393703747,0.002,41817.0,41807.0,0.06202075]
[1646393703943,0.025,41826.0,41821.0,0.0616466]
[1646393704143,0.03636069,41830.0,41822.0,0.23797925]
[1646393704347,0.23088961,41830.0,41823.0,0.21918406]
[1646393704542,0.03853666,41831.0,41829.0,0.1866653]
[1646393704746,0.0021,41831.0,41823.0,0.21918406]
[1646393705085,0.0021,41831.0,41813.0,0.3]
[1646393705283,0.011679,41831.0,41812.0,0.5]
[1646393705480,0.81318378,41829.0,41813.0,0.3]
[1646393705682,0.81318378,41829.0,41815.0,0.19160888]
[1646393705683,0.19026808,41824.0,41815.0,0.19160888]
[1646393705880,0.19026808,41824.0,41815.0,0.6652305]
[1646393706081,0.23643232,41823.0,41815.0,0.6652305]
[1646393706281,0.025,41823.0,41815.0,0.6652305]
[1646393706481,0.119667,41828.0,41815.0,0.84401918]
[1646393706681,0.119667,41828.0,41815.0,0.6652305]
[1646393706682,0.419667,41828.0,41815.0,0.6652305]
[1646393706883,0.444667,41828.0,41815.0,0.51903961]
[1646393707081,0.62745696,41828.0,41815.0,0.18951833]
[1646393707382,0.62745696,41828.0,41816.0,0.27733404]
[1646393707383,0.72745696,41828.0,41816.0,0.27733404]
[1646393707581,0.059828,41826.0,41816.0,0.27733404]
[1646393707783,0.3,41825.0,41816.0,0.27733404]
[1646393708086,0.3,41825.0,41808.0,0.5]
[1646393708087,0.20383479,41821.0,41808.0,0.5]
[1646393708283,0.7321,41819.0,41808.0,0.5]
[1646393708485,0.7271,41819.0,41808.0,0.5]
[1646393708685,0.7271,41814.0,41808.0,0.46596917]
[1646393708924,0.7271,41814.0,41808.0,0.42011226]
[1646393708925,0.7271,41810.0,41808.0,0.42011226]
[1646393709120,0.78696,41810.0,41799.0,1.02583787]
[1646393709321,0.15,41809.0,41799.0,0.95761368]
[1646393709524,0.075,41809.0,41799.0,0.52583787]
[1646393710021,0.27546751,41806.0,41801.0,0.18867915]
[1646393710522,0.32546751,41806.0,41801.0,0.18867915]
[1646393710721,0.32546751,41806.0,41799.0,0.52483787]
[1646393711123,0.38532351,41806.0,41799.0,0.52483787]
[1646393711525,0.119726,41805.0,41799.0,0.52483787]
[1646393711722,0.851826,41805.0,41799.0,0.52483787]
[1646393711923,0.7321,41804.0,41799.0,0.48734733]
[1646393712125,0.16715159,41800.0,41799.0,0.48734733]
[1646393712422,0.15967916,41800.0,41799.0,0.48734733]
[1646393712668,0.25967916,41800.0,41799.0,0.48734733]
[1646393713069,0.25967916,41800.0,41799.0,0.45334733]
[1646393713268,0.25967916,41800.0,41799.0,0.27093987]
[1646393713473,0.74444829,41798.0,41783.0,0.06891622]
[1646393713671,0.74802253,41794.0,41779.0,0.72311622]
[1646393713871,0.74802253,41794.0,41779.0,0.6542]
[1646393713872,1.0321,41793.0,41779.0,0.6542]
[1646393714071,1.0321,41793.0,41779.0,0.1542]
[1646393714273,0.23461497,41784.0,41779.0,0.1542]
[1646393714471,0.23461497,41784.0,41776.0,0.4901]
[1646393714472,0.3,41783.0,41776.0,0.003]
[1646393714676,0.7321,41780.0,41776.0,0.003]
[1646393714873,0.7321,41780.0,41771.0,0.01]
[1646393714874,0.7321,41777.0,41771.0,0.01]
[1646393715072,1.0321,41776.0,41771.0,0.01]
[1646393715372,0.23034256,41775.0,41771.0,0.01]
[1646393715572,0.1,41777.0,41771.0,0.01]
[1646393715773,0.05,41777.0,41771.0,0.01]
[1646393715975,0.05,41777.0,41771.0,0.00475994]
[1646393716173,0.05,41778.0,41771.0,0.00306476]
[1646393716416,0.21859775,41779.0,41771.0,0.00306476]
[1646393716622,0.059901,41778.0,41771.0,0.00306476]
[1646393716818,0.21859775,41779.0,41771.0,0.00306476]
[1646393716819,0.103,41779.0,41771.0,0.00306476]
[1646393717018,0.062589,41779.0,41771.0,0.00206476]
[1646393717222,0.012589,41779.0,41771.0,0.00206476]
[1646393717417,0.003,41779.0,41771.0,0.00206476]
[1646393717619,0.25339262,41778.0,41771.0,0.00206476]
[1646393718019,0.35339262,41778.0,41771.0,0.00206476]
[1646393719020,0.05,41779.0,41774.0,0.06891622]
[1646393719219,0.002,41782.0,41771.0,0.07098098]
[1646393719620,0.3,41783.0,41771.0,0.07098098]
[1646393719621,0.35,41783.0,41771.0,0.07098098]
[1646393719923,0.26970562,41781.0,41774.0,0.2599515]
[1646393720185,0.05,41782.0,41774.0,0.2599515]
[1646393720786,0.35,41783.0,41777.0,0.18028274]
[1646393720986,0.009589,41782.0,41777.0,0.18028274]
[1646393721389,0.159886,41784.0,41777.0,0.18028274]
[1646393722188,0.6016,41778.0,41777.0,0.18028274]
[1646393722389,0.25701891,41782.0,41774.0,0.17911413]
[1646393722592,0.25701891,41782.0,41772.0,0.06891622]
[1646393722790,0.30701891,41782.0,41772.0,0.06891622]
[1646393723489,0.6016,41780.0,41776.0,0.06891622]
[1646393723689,0.35,41783.0,41774.0,0.19022519]
[1646393724320,0.35,41783.0,41771.0,0.00206476]
[1646393724321,0.05,41783.0,41781.0,0.16418964]
[1646393724720,0.159886,41784.0,41777.0,0.20661538]
[1646393725122,0.009589,41783.0,41775.0,0.06891622]
[1646393725320,0.159886,41784.0,41775.0,0.06891622]
[1646393725719,0.159886,41784.0,41778.0,0.17843461]
[1646393725918,0.761486,41784.0,41778.0,0.17843461]
[1646393726319,0.761486,41784.0,41772.0,0.06891622]
[1646393726321,0.25859811,41782.0,41772.0,0.06891622]
[1646393726520,0.30859811,41782.0,41772.0,0.06891622]
[1646393726721,0.30859811,41782.0,41771.0,0.00206476]
[1646393726722,0.15454832,41781.0,41771.0,0.00206476]
[1646393726919,0.04790993,41777.0,41771.0,0.00206476]
[1646393727120,0.3,41780.0,41771.0,0.00206476]
[1646393727121,0.04791452,41773.0,41771.0,0.00206476]
[1646393727321,0.9,41771.0,41760.0,0.66956818]
[1646393727567,0.9,41771.0,41758.0,0.06891622]
[1646393727769,0.57352502,41772.0,41757.0,0.21555682]
[1646393727968,0.059913,41770.0,41761.0,0.06891622]
[1646393728171,0.3,41769.0,41756.0,0.1349]
[1646393728368,0.35,41769.0,41761.0,0.23874137]
[1646393728568,0.35,41769.0,41762.0,0.06891622]
[1646393728569,0.18318899,41768.0,41762.0,0.06891622]
[1646393729070,0.04792141,41764.0,41762.0,0.06891622]
[1646393729371,0.04792141,41763.0,41762.0,0.06891622]
[1646393729569,0.04792141,41763.0,41759.0,0.16097325]
[1646393729769,0.059912,41766.0,41759.0,0.16097325]
[1646393730171,0.059912,41766.0,41762.0,0.06891622]
[1646393730373,0.04792141,41763.0,41762.0,0.06891622]
[1646393730571,0.04792141,41763.0,41753.0,0.06891622]
[1646393730771,0.059912,41766.0,41753.0,0.06891622]
[1646393730772,0.3,41765.0,41753.0,0.06891622]
[1646393730971,0.26229106,41765.0,41753.0,0.06891622]
[1646393731171,0.56229106,41765.0,41753.0,0.06891622]
[1646393731420,0.56229106,41765.0,41754.0,0.06891622]
[1646393731421,0.66229106,41765.0,41754.0,0.06891622]
[1646393731625,0.059923,41759.0,41750.0,0.27318935]
[1646393731822,0.29755,41758.0,41750.0,0.27318935]
[1646393732021,0.059923,41759.0,41752.0,0.28398498]
[1646393732022,0.5983,41755.0,41752.0,0.28398498]
[1646393732221,0.059923,41759.0,41752.0,0.28398498]
[1646393732621,0.6016,41753.0,41752.0,0.28398498]
[1646393732821,0.059923,41759.0,41753.0,0.65783766]
[1646393733222,0.20524043,41758.0,41753.0,0.65783766]
[1646393733421,0.05,41758.0,41753.0,0.65783766]
[1646393733621,0.05,41759.0,41753.0,0.65783766]
[1646393733821,0.459917,41764.0,41762.0,0.1]
[1646393734021,0.3,41763.0,41762.0,0.1]
[1646393734222,0.35901931,41763.0,41762.0,0.1]
[1646393734423,0.3,41763.0,41762.0,0.1]
[1646393734724,0.109917,41764.0,41762.0,0.1]
[1646393735185,0.102,41765.0,41762.0,0.1]
[1646393735385,0.002,41765.0,41762.0,0.1]
[1646393735589,0.219836,41767.0,41764.0,0.15731502]
[1646393735987,0.6016,41765.0,41764.0,0.15731502]
[1646393736185,0.219836,41767.0,41762.0,0.1]
[1646393736489,0.05,41767.0,41762.0,0.1]
[1646393736886,0.05,41768.0,41762.0,0.1]
[1646393737286,0.6016,41767.0,41762.0,0.1]
[1646393737488,0.05,41768.0,41762.0,0.1]
[1646393738390,0.3,41768.0,41762.0,0.1]
[1646393738589,0.173821,41769.0,41762.0,0.1]
[1646393739427,0.05901931,41765.0,41762.0,0.1]
[1646393739623,0.3,41768.0,41762.0,0.1]
[1646393739823,0.35,41768.0,41762.0,0.1]
[1646393740023,0.3,41768.0,41762.0,0.1]
[1646393740325,0.6016,41763.0,41762.0,0.1]
[1646393740523,0.3,41768.0,41762.0,0.1]
[1646393740725,0.183413,41769.0,41762.0,0.1]
[1646393740922,0.3,41768.0,41762.0,0.1]
[1646393741125,0.173821,41769.0,41762.0,0.1]
[1646393741722,0.3,41768.0,41762.0,0.1]
[1646393742323,0.169821,41769.0,41762.0,0.1]
[1646393742769,0.169821,41769.0,41767.0,0.2092349]
[1646393743173,0.05204622,41772.0,41768.0,0.3]
[1646393743174,0.002,41772.0,41768.0,0.3]
[1646393743570,0.002,41772.0,41771.0,0.6016]
[1646393743770,0.03551658,41776.0,41768.0,0.3]
[1646393743970,0.03551658,41776.0,41775.0,0.25190659]
[1646393744571,0.03551658,41776.0,41771.0,0.06891622]
[1646393745372,0.03551658,41776.0,41773.0,0.18411951]
[1646393745572,0.1,41780.0,41774.0,0.21424079]
[1646393746074,0.045,41780.0,41775.0,0.20511337]
[1646393746320,0.05,41780.0,41775.0,0.20511337]
[1646393746520,0.21977392,41781.0,41774.0,0.21424079]
[1646393746521,0.26977392,41781.0,41774.0,0.21424079]
[1646393747121,0.31977392,41781.0,41774.0,0.21424079]
[1646393747523,0.31977392,41781.0,41775.0,0.19090049]
[1646393747723,0.31977392,41781.0,41774.0,0.21424079]
[1646393748324,0.31977392,41781.0,41774.0,0.28315701]
[1646393748524,0.159892,41781.0,41774.0,0.28315701]
[1646393749527,0.3350807,41781.0,41774.0,0.28315701]
[1646393749930,0.3350807,41781.0,41774.0,0.12326801]
[1646393749931,0.179688,41779.0,41774.0,0.12326801]
[1646393750178,0.179688,41779.0,41774.0,0.06891622]
[1646393750588,0.179688,41779.0,41775.0,0.06891622]
[1646393750974,0.179688,41779.0,41773.0,0.18411951]
[1646393751174,0.059891,41776.0,41773.0,0.18411951]
[1646393751376,0.059891,41776.0,41775.0,0.06891622]
[1646393752574,0.33795097,41776.0,41771.0,0.06891622]
[1646393752775,0.33795097,41776.0,41763.0,0.1306]
[1646393752776,0.6016,41772.0,41763.0,0.1306]
[1646393752975,0.6016,41766.0,41763.0,0.1306]
[1646393753176,0.059906,41771.0,41762.0,0.16891622]
[1646393753177,0.6016,41764.0,41762.0,0.16891622]
[1646393753374,0.6516,41764.0,41762.0,0.16891622]
[1646393753576,0.6016,41763.0,41762.0,0.16891622]
[1646393753822,0.6016,41763.0,41762.0,0.39207407]
[1646393755222,0.6516,41763.0,41762.0,0.16891622]
[1646393756825,0.6516,41763.0,41762.0,0.1]
[1646393757027,0.6516,41763.0,41759.0,0.06891622]
[1646393757226,0.6016,41760.0,41759.0,0.06891622]
[1646393757674,0.6516,41760.0,41759.0,0.06891622]
[1646393757871,0.65004,41760.0,41759.0,0.06891622]
[1646393758771,0.65004,41760.0,41758.0,0.30836798]
[1646393759176,0.65004,41760.0,41759.0,0.665037]
[1646393759371,0.001,41765.0,41759.0,0.665037]
[1646393759572,0.001,41765.0,41764.0,0.06891622]
[1646393759771,0.059894,41770.0,41767.0,0.23509989]
[1646393760172,0.059894,41770.0,41768.0,0.06891622]
[1646393761172,0.059894,41770.0,41767.0,0.23509989]
[1646393761428,0.059894,41770.0,41768.0,0.06891622]
[1646393762920,0.059894,41770.0,41767.0,0.23509989]
[1646393763120,0.059894,41770.0,41768.0,0.06891622]
[1646393763920,0.05,41771.0,41770.0,0.119788]
[1646393764120,0.6516,41773.0,41770.0,0.119788]
[1646393765171,0.059896,41772.0,41770.0,0.119788]
[1646393767971,0.069487,41772.0,41770.0,0.119788]
[1646393769421,0.059896,41772.0,41770.0,0.119788]
[1646393769825,0.09658161,41776.0,41771.0,0.51112259]
[1646393770023,0.09658161,41776.0,41772.0,0.06891622]
[1646393770024,0.059892,41776.0,41772.0,0.06891622]
[1646393771723,0.059892,41776.0,41774.0,0.28290327]
[1646393771926,0.059892,41776.0,41772.0,0.06891622]
[1646393772974,0.059892,41776.0,41772.0,0.31266533]
[1646393773177,0.059892,41776.0,41770.0,0.120788]
[1646393773773,0.059892,41776.0,41770.0,0.119788]
[1646393774174,0.15649102,41774.0,41770.0,0.119788]
[1646393774374,0.20649102,41774.0,41773.0,0.28070823]
[1646393774977,0.05,41774.0,41770.0,0.119788]
[1646393775274,0.109892,41776.0,41770.0,0.119788]
[1646393775675,0.109892,41776.0,41771.0,0.06891622]
[1646393775875,0.00959,41775.0,41771.0,0.06891622]
[1646393776074,0.109892,41776.0,41773.0,0.26750591]
[1646393777533,0.05,41776.0,41773.0,0.26750591]
[1646393777730,0.169783,41781.0,41773.0,0.26750591]
[1646393778330,0.169783,41781.0,41775.0,0.21613106]
[1646393778530,0.169783,41781.0,41773.0,0.33642213]
[1646393778932,0.05,41781.0,41774.0,0.3]
[1646393779531,0.059889,41782.0,41777.0,0.18593585]
[1646393779733,0.069478,41782.0,41779.0,0.06891622]
[1646393779931,0.069478,41782.0,41779.0,0.18086434]
[1646393780177,0.059889,41782.0,41780.0,0.06891622]
[1646393781175,0.059889,41782.0,41776.0,0.06891622]
[1646393781576,0.059889,41782.0,41771.0,0.1211]
[1646393781776,0.059889,41782.0,41772.0,0.06891622]
[1646393782078,0.19737538,41775.0,41772.0,0.06891622]
[1646393782376,0.30727338,41775.0,41772.0,0.06891622]
[1646393783676,0.31686338,41775.0,41772.0,0.06891622]
[1646393784129,0.26686338,41775.0,41772.0,0.06891622]
[1646393784330,0.069488,41775.0,41772.0,0.06891622]
[1646393785134,0.059898,41775.0,41772.0,0.06891622]
[1646393785733,0.19193846,41774.0,41772.0,0.06891622]
[1646393785932,0.19193846,41774.0,41770.0,0.119788]
[1646393786334,0.24193846,41774.0,41770.0,0.119788]
[1646393787675,0.24193846,41774.0,41770.0,0.11969091]
[1646393788477,0.84353846,41774.0,41770.0,0.11969091]
[1646393789082,0.87954463,41774.0,41770.0,0.11969091]
[1646393789480,1.03334318,41774.0,41770.0,0.11969091]
[1646393790481,0.2754992,41771.0,41770.0,0.11969091]
[1646393790780,0.3254992,41771.0,41770.0,0.11969091]
[1646393792129,0.2254992,41771.0,41770.0,0.11969091]
[1646393792527,0.15379855,41773.0,41770.0,0.11969091]
[1646393792928,0.82954463,41774.0,41770.0,0.11969091]
[1646393793131,0.15379855,41773.0,41770.0,0.11969091]
[1646393793332,0.98334318,41774.0,41770.0,0.11969091]
[1646393793529,0.23441464,41771.0,41770.0,0.11969091]
[1646393793729,0.15379855,41773.0,41770.0,0.11969091]
[1646393793930,0.82954463,41774.0,41770.0,0.11969091]
[1646393794132,0.87954463,41774.0,41770.0,0.11969091]
[1646393794529,1.03334318,41774.0,41770.0,0.11969091]
[1646393794729,0.27466415,41772.0,41770.0,0.11969091]
[1646393794930,1.03334318,41774.0,41770.0,0.11969091]
[1646393795177,0.05,41772.0,41770.0,0.11969091]
[1646393795377,0.15379855,41773.0,41770.0,0.11969091]
[1646393795577,0.16339055,41773.0,41770.0,0.11969091]
[1646393795780,0.009592,41773.0,41770.0,0.11969091]
[1646393795985,0.25735347,41771.0,41770.0,0.11969091]
[1646393797179,0.30735347,41771.0,41770.0,0.11969091]
[1646393797680,0.30735347,41771.0,41770.0,0.11910737]
[1646393798081,0.20379855,41773.0,41770.0,0.11910737]
[1646393798482,0.05,41773.0,41770.0,0.11910737]
[1646393798681,0.23980472,41774.0,41770.0,0.11910737]
[1646393798930,0.08600617,41774.0,41770.0,0.11910737]
[1646393799529,0.28738274,41774.0,41770.0,0.11910737]
[1646393800129,0.25113897,41772.0,41770.0,0.11910737]
[1646393800431,0.28738274,41774.0,41770.0,0.11910737]
[1646393801430,0.26412892,41772.0,41770.0,0.11910737]
[1646393801730,0.31412892,41772.0,41770.0,0.11910737]
[1646393802131,0.05,41772.0,41770.0,0.11910737]
[1646393802333,0.28738274,41774.0,41770.0,0.11910737]
[1646393803182,0.28369256,41773.0,41770.0,0.11910737]
[1646393808955,0.28219256,41773.0,41770.0,0.11910737]
[1646393809255,0.6016,41771.0,41764.0,0.1325]
[1646393809455,0.6016,41771.0,41757.0,0.20031622]
[1646393809456,0.15636687,41761.0,41757.0,0.20031622]
[1646393809654,0.119842,41763.0,41762.0,0.30994189]
[1646393811081,0.17976,41763.0,41762.0,0.30994189]
[1646393811681,0.17976,41763.0,41762.0,0.3051479]
[1646393811882,0.2149734,41763.0,41762.0,0.3051479]
[1646393812282,0.2649734,41763.0,41762.0,0.3051479]
[1646393815135,0.0852134,41763.0,41762.0,0.3051479]
[1646393816937,0.0852134,41763.0,41762.0,0.66920647]
[1646393817139,0.0852134,41763.0,41762.0,0.6051479]
[1646393817140,0.0352134,41763.0,41762.0,0.6051479]
[1646393819781,0.0352134,41763.0,41762.0,0.3051479]
[1646393821844,1.41227251,41762.0,41753.0,0.65783766]
[1646393822040,0.6368134,41763.0,41753.0,0.65783766]
[1646393822041,0.6016,41758.0,41753.0,0.65783766]
[1646393822338,0.6016,41755.0,41753.0,0.65783766]
[1646393822938,0.6516,41755.0,41753.0,0.64935666]
[1646393823437,0.26841763,41754.0,41753.0,0.64935666]
[1646393829621,0.711531,41755.0,41753.0,0.64563209]
[1646393833076,0.711531,41755.0,41753.0,0.71454831]
[1646393833277,0.711531,41755.0,41753.0,0.64563209]
[1646393835079,0.711531,41755.0,41753.0,0.93134706]
[1646393835381,0.711531,41755.0,41753.0,0.64563209]
[1646393835780,0.72439055,41755.0,41753.0,0.64563209]
[1646393836818,0.72439055,41755.0,41753.0,0.03542352]
[1646393837021,0.98629364,41754.0,41753.0,0.00121313]
[1646393837223,1.4,41753.0,41750.0,0.02]
[1646393837421,0.6016,41751.0,41750.0,0.02]
[1646393837822,0.6516,41751.0,41750.0,0.02]
[1646393838019,0.92668648,41751.0,41750.0,0.02]
[1646393838222,0.97668648,41751.0,41750.0,0.02]
[1646393838422,1.27668648,41751.0,41750.0,0.02]
[1646393839322,1.03740179,41751.0,41750.0,0.02]
[1646393839523,0.74733879,41751.0,41750.0,0.02]
[1646393839723,0.68740179,41751.0,41750.0,0.02]
[1646393839927,0.21104521,41751.0,41750.0,0.02]
[1646393840571,0.03580179,41751.0,41750.0,0.08891622]
[1646393840769,0.03580179,41751.0,41750.0,0.33666254]
[1646393840969,0.03580179,41751.0,41750.0,0.08891622]
[1646393841168,0.03580179,41751.0,41750.0,0.7027024]
[1646393841368,0.03580179,41751.0,41750.0,0.7266624]
[1646393841569,0.00370179,41751.0,41750.0,0.8766624]
[1646393841867,0.00370179,41751.0,41750.0,0.69839506]
[1646393842069,0.00370179,41751.0,41750.0,0.54839506]
[1646393842271,0.00370179,41751.0,41750.0,0.67443506]
[1646393842474,0.00370179,41751.0,41750.0,0.84553133]
[1646393843069,0.00370179,41751.0,41750.0,0.52443506]
[1646393843669,0.00370179,41751.0,41750.0,0.71949133]
[1646393843917,0.00370179,41751.0,41750.0,0.54839506]
[1646393844215,0.00370179,41751.0,41750.0,0.45395322]
[1646393844416,0.00370179,41751.0,41750.0,0.08891622]
[1646393844617,0.00370179,41751.0,41750.0,0.45395322]
[1646393845617,0.00370179,41751.0,41750.0,0.08891622]
[1646393848368,0.00370179,41751.0,41750.0,0.02]
[1646393848570,0.26717822,41751.0,41750.0,0.02]
[1646393849773,0.05180179,41751.0,41750.0,0.02]
[1646393851417,0.00370179,41751.0,41750.0,0.02]
[1646393853724,0.05180179,41751.0,41750.0,0.02]
[1646393854122,0.05180179,41751.0,41750.0,0.01832752]